[Event "Live Chess"]
[Site "Chess.com"]
[Date "2024.06.02"]
[Round "-"]
[White "davigator"]
[Black "KeithArkell"]
[Result "0-1"]
[WhiteElo "2349"]
[BlackElo "2431"]
[TimeControl "300"]
[EndTime "6:53:45 PDT"]
[Termination "KeithArkell won by resignation"]

1. e4 {[%clk 0:04:57]} 1... c6 {[%clk 0:04:59]} 2. d4 {[%clk 0:04:54.1]} 2... d5
{[%clk 0:04:58.3]} 3. e5 {[%clk 0:04:51.5]} 3... c5 {[%clk 0:04:57.6]} 4. dxc5
{[%clk 0:04:50.8]} 4... Nc6 {[%clk 0:04:56.6]} 5. a3 {[%clk 0:04:50.2]} 5... a5
{[%clk 0:04:55.3]} 6. Bb5 {[%clk 0:04:39.3]} 6... e6 {[%clk 0:04:53.7]} 7. Be3
{[%clk 0:04:35.9]} 7... Bd7 {[%clk 0:04:53.1]} 8. Bxc6 {[%clk 0:04:34]} 8...
Bxc6 {[%clk 0:04:52.8]} 9. Nf3 {[%clk 0:04:31.8]} 9... Ne7 {[%clk 0:04:47.9]}
10. O-O {[%clk 0:04:20.2]} 10... Nf5 {[%clk 0:04:47]} 11. Qd2 {[%clk 0:04:08.7]}
11... Nxe3 {[%clk 0:04:44.8]} 12. Qxe3 {[%clk 0:04:08]} 12... a4 {[%clk
0:04:44.4]} 13. Rd1 {[%clk 0:03:55.5]} 13... Qa5 {[%clk 0:04:42.8]} 14. Nc3
{[%clk 0:03:50.6]} 14... Bxc5 {[%clk 0:04:38.5]} 15. Qg5 {[%clk 0:03:49.5]}
15... O-O {[%clk 0:04:37]} 16. h4 {[%clk 0:03:47.4]} 16... h6 {[%clk 0:04:35.7]}
17. Qg4 {[%clk 0:03:45.5]} 17... Qb6 {[%clk 0:04:30.1]} 18. Nd4 {[%clk
0:03:28.8]} 18... Qxb2 {[%clk 0:04:25.1]} 19. Nxc6 {[%clk 0:03:23.8]} 19... bxc6
{[%clk 0:04:22.7]} 20. Qg3 {[%clk 0:03:20.4]} 20... Qb7 {[%clk 0:04:17.4]} 21.
Ne2 {[%clk 0:03:13.2]} 21... Qe7 {[%clk 0:04:15.7]} 22. c3 {[%clk 0:03:10.5]}
22... Bxa3 {[%clk 0:04:14.2]} 23. Nd4 {[%clk 0:03:09]} 23... Rfc8 {[%clk
0:04:12.1]} 24. c4 {[%clk 0:03:08.2]} 24... Bc5 {[%clk 0:04:10.2]} 25. cxd5
{[%clk 0:03:07.6]} 25... cxd5 {[%clk 0:04:08.5]} 26. Nf3 {[%clk 0:03:02.8]}
26... a3 {[%clk 0:04:07.2]} 27. Ra2 {[%clk 0:03:00.5]} 27... Rab8 {[%clk
0:04:05.3]} 28. Kh2 {[%clk 0:02:58.4]} 28... Rb2 {[%clk 0:04:03.4]} 29. Raa1
{[%clk 0:02:56.8]} 29... a2 {[%clk 0:04:02.3]} 30. Nd2 {[%clk 0:02:55.8]} 30...
Bd4 {[%clk 0:03:55.9]} 31. f4 {[%clk 0:02:46]} 31... Rxd2 {[%clk 0:03:51.4]} 32.
Rxd2 {[%clk 0:02:45.3]} 32... Bxa1 {[%clk 0:03:50.6]} 33. Rxa2 {[%clk
0:02:44.9]} 33... Bd4 {[%clk 0:03:49.5]} 34. Qd3 {[%clk 0:02:43.7]} 34... Qxh4+
{[%clk 0:03:48]} 0-1

[Event "Live Chess"]
[Site "Chess.com"]
[Date "2024.06.02"]
[Round "-"]
[White "JanMur7"]
[Black "wadsy27"]
[Result "0-1"]
[WhiteElo "2294"]
[BlackElo "2588"]
[TimeControl "300"]
[EndTime "6:54:05 PDT"]
[Termination "wadsy27 won by resignation"]

1. c4 {[%clk 0:04:56.7]} 1... e5 {[%clk 0:04:57.9]} 2. Nc3 {[%clk 0:04:55.8]}
2... Nf6 {[%clk 0:04:57.2]} 3. Nf3 {[%clk 0:04:54.6]} 3... e4 {[%clk 0:04:56.7]}
4. Ng5 {[%clk 0:04:53.8]} 4... c6 {[%clk 0:04:56.3]} 5. Ngxe4 {[%clk 0:04:53.3]}
5... Nxe4 {[%clk 0:04:56]} 6. Nxe4 {[%clk 0:04:52.8]} 6... d5 {[%clk 0:04:55.8]}
7. cxd5 {[%clk 0:04:51.7]} 7... cxd5 {[%clk 0:04:55.7]} 8. Ng3 {[%clk
0:04:50.8]} 8... h5 {[%clk 0:04:55.2]} 9. e3 {[%clk 0:04:48.5]} 9... h4 {[%clk
0:04:54.7]} 10. Ne2 {[%clk 0:04:48.1]} 10... Nc6 {[%clk 0:04:51.9]} 11. b3
{[%clk 0:04:40]} 11... Bg4 {[%clk 0:04:47.9]} 12. h3 {[%clk 0:04:34.8]} 12...
Bh5 {[%clk 0:04:46.5]} 13. Bb2 {[%clk 0:04:11.5]} 13... d4 {[%clk 0:04:44.1]}
14. exd4 {[%clk 0:03:52.7]} 14... Rh6 {[%clk 0:04:17.7]} 15. f3 {[%clk
0:03:39.8]} 15... Re6 {[%clk 0:04:14.8]} 16. Kf2 {[%clk 0:03:37.1]} 16... Qg5
{[%clk 0:03:59.8]} 17. d5 {[%clk 0:03:20.6]} 17... Bc5+ {[%clk 0:03:40.9]} 18.
d4 {[%clk 0:03:18.5]} 18... Qe3+ {[%clk 0:03:40]} 0-1

[Event "Live Chess"]
[Site "Chess.com"]
[Date "2024.06.02"]
[Round "-"]
[White "NeilDruggan73"]
[Black "OxonChess"]
[Result "0-1"]
[WhiteElo "1712"]
[BlackElo "1809"]
[TimeControl "300"]
[EndTime "6:54:28 PDT"]
[Termination "OxonChess won on time"]

1. d4 {[%clk 0:04:57.7]} 1... Nf6 {[%clk 0:04:57.8]} 2. Bg5 {[%clk 0:04:54.9]}
2... Ne4 {[%clk 0:04:54.1]} 3. h4 {[%clk 0:04:52.6]} 3... h6 {[%clk 0:04:49.7]}
4. Bf4 {[%clk 0:04:50.4]} 4... d6 {[%clk 0:04:47.7]} 5. e3 {[%clk 0:04:45.5]}
5... g6 {[%clk 0:04:43.1]} 6. Nd2 {[%clk 0:04:44.3]} 6... Bf5 {[%clk 0:04:37.7]}
7. Bd3 {[%clk 0:04:42.4]} 7... d5 {[%clk 0:04:30.1]} 8. Ngf3 {[%clk 0:04:32.8]}
8... Nd7 {[%clk 0:04:27.1]} 9. Bxe4 {[%clk 0:03:59.8]} 9... dxe4 {[%clk
0:04:17.6]} 10. Ne5 {[%clk 0:03:58.5]} 10... Bg7 {[%clk 0:04:05.1]} 11. g4
{[%clk 0:03:50.8]} 11... Be6 {[%clk 0:03:56.9]} 12. c4 {[%clk 0:03:43.6]} 12...
Nxe5 {[%clk 0:03:54]} 13. Bxe5 {[%clk 0:03:33.3]} 13... f6 {[%clk 0:03:52.4]}
14. d5 {[%clk 0:03:23]} 14... Bf7 {[%clk 0:03:42.1]} 15. Bc3 {[%clk 0:03:17.4]}
15... Qd7 {[%clk 0:03:33]} 16. Nxe4 {[%clk 0:03:12.3]} 16... O-O-O {[%clk
0:03:24.9]} 17. f3 {[%clk 0:03:09.7]} 17... Rhe8 {[%clk 0:03:20.1]} 18. Qb3
{[%clk 0:03:07.4]} 18... f5 {[%clk 0:03:04.6]} 19. Bxg7 {[%clk 0:03:03.8]} 19...
fxe4 {[%clk 0:03:03.8]} 20. fxe4 {[%clk 0:03:02.5]} 20... Qxg4 {[%clk 0:03:01]}
21. Qd3 {[%clk 0:02:46.4]} 21... e6 {[%clk 0:02:42]} 22. Kd2 {[%clk 0:02:02.5]}
22... exd5 {[%clk 0:02:38.1]} 23. exd5 {[%clk 0:01:59.8]} 23... Qg2+ {[%clk
0:02:23.9]} 24. Kc3 {[%clk 0:01:56.3]} 24... c6 {[%clk 0:01:56.3]} 25. Rhg1
{[%clk 0:01:54.6]} 25... Qf3 {[%clk 0:01:53.6]} 26. Raf1 {[%clk 0:01:51.9]}
26... Qh3 {[%clk 0:01:47.8]} 27. Bd4 {[%clk 0:01:40.4]} 27... Qd7 {[%clk
0:01:31.1]} 28. e4 {[%clk 0:01:35.5]} 28... cxd5 {[%clk 0:01:29.9]} 29. cxd5
{[%clk 0:01:26.9]} 29... Kb8 {[%clk 0:01:24.8]} 30. b3 {[%clk 0:01:17.4]} 30...
Rc8+ {[%clk 0:01:05.1]} 31. Kb2 {[%clk 0:01:15.8]} 31... Qe7 {[%clk 0:01:03.6]}
32. Re1 {[%clk 0:01:06.8]} 32... Qxh4 {[%clk 0:00:59.5]} 33. Rgf1 {[%clk
0:01:02.4]} 33... Bxd5 {[%clk 0:00:50.6]} 34. Rh1 {[%clk 0:00:32]} 34... Qg4
{[%clk 0:00:39.8]} 35. Rhg1 {[%clk 0:00:23.9]} 35... Qh4 {[%clk 0:00:33.6]} 36.
Rh1 {[%clk 0:00:22.4]} 36... Qg4 {[%clk 0:00:30.4]} 37. exd5 {[%clk 0:00:20.1]}
37... Qg2+ {[%clk 0:00:25.2]} 38. Ka3 {[%clk 0:00:15.7]} 38... Rf8 {[%clk
0:00:19.4]} 39. Rhg1 {[%clk 0:00:09.3]} 39... Qh3 {[%clk 0:00:16.9]} 40. Rxg6
{[%clk 0:00:07.4]} 40... Qxd3 {[%clk 0:00:14.8]} 41. Re7 {[%clk 0:00:03]} 41...
Qxd4 {[%clk 0:00:12.4]} 42. Rgg7 {[%clk 0:00:02]} 42... Qc5+ {[%clk 0:00:11.3]}
0-1

[Event "Live Chess"]
[Site "Chess.com"]
[Date "2024.06.02"]
[Round "-"]
[White "Crowded_House"]
[Black "E2E4colchester"]
[Result "1-0"]
[WhiteElo "1631"]
[BlackElo "1179"]
[TimeControl "300"]
[EndTime "6:54:39 PDT"]
[Termination "Crowded_House won by checkmate"]

1. d4 {[%clk 0:04:58]} 1... d5 {[%clk 0:04:56.9]} 2. Bg5 {[%clk 0:04:57.2]} 2...
Nf6 {[%clk 0:04:54.5]} 3. e3 {[%clk 0:04:56.1]} 3... h6 {[%clk 0:04:53.1]} 4.
Bh4 {[%clk 0:04:54.5]} 4... g5 {[%clk 0:04:52.3]} 5. Bg3 {[%clk 0:04:53]} 5...
e6 {[%clk 0:04:51.1]} 6. Bd3 {[%clk 0:04:50.7]} 6... Bg7 {[%clk 0:04:46.6]} 7.
Nd2 {[%clk 0:04:49.3]} 7... O-O {[%clk 0:04:42.6]} 8. c3 {[%clk 0:04:48.8]} 8...
b6 {[%clk 0:04:38.3]} 9. Ngf3 {[%clk 0:04:47.2]} 9... c5 {[%clk 0:04:28.4]} 10.
dxc5 {[%clk 0:04:44.4]} 10... bxc5 {[%clk 0:04:27.2]} 11. O-O {[%clk 0:04:38.6]}
11... c4 {[%clk 0:04:25.8]} 12. Bc2 {[%clk 0:04:36.8]} 12... Ba6 {[%clk
0:04:22.2]} 13. Re1 {[%clk 0:04:32.6]} 13... Re8 {[%clk 0:04:20.1]} 14. e4
{[%clk 0:04:25.5]} 14... Nc6 {[%clk 0:04:13.8]} 15. exd5 {[%clk 0:04:18.8]}
15... exd5 {[%clk 0:04:12.5]} 16. Rxe8+ {[%clk 0:04:17.8]} 16... Qxe8 {[%clk
0:04:10.8]} 17. Qe1 {[%clk 0:04:15]} 17... Rb8 {[%clk 0:03:55.9]} 18. b3 {[%clk
0:04:03.7]} 18... Qxe1+ {[%clk 0:03:47]} 19. Rxe1 {[%clk 0:04:01.8]} 19... Re8
{[%clk 0:03:45.7]} 20. Rxe8+ {[%clk 0:03:59.8]} 20... Nxe8 {[%clk 0:03:44.8]}
21. Nb1 {[%clk 0:03:48.8]} 21... cxb3 {[%clk 0:03:40]} 22. axb3 {[%clk
0:03:45.1]} 22... Na5 {[%clk 0:03:37.6]} 23. Be5 {[%clk 0:03:30.2]} 23... f5
{[%clk 0:03:27.3]} 24. Bxg7 {[%clk 0:03:28]} 24... Nxg7 {[%clk 0:03:24.8]} 25.
Nd4 {[%clk 0:03:18.2]} 25... Kf7 {[%clk 0:03:19.1]} 26. Nxf5 {[%clk 0:03:14.1]}
26... Nxf5 {[%clk 0:03:14]} 27. Bxf5 {[%clk 0:03:13.5]} 27... Kf6 {[%clk
0:03:12.8]} 28. Bc2 {[%clk 0:03:09.6]} 28... Ke5 {[%clk 0:03:08.2]} 29. f3
{[%clk 0:03:08.7]} 29... Kf4 {[%clk 0:03:05.1]} 30. Kf2 {[%clk 0:03:06.7]} 30...
Bb5 {[%clk 0:02:55.4]} 31. g3+ {[%clk 0:03:05.5]} 31... Ke5 {[%clk 0:02:53.2]}
32. Ke3 {[%clk 0:02:58.3]} 32... Ba6 {[%clk 0:02:49.9]} 33. f4+ {[%clk
0:02:56.9]} 33... gxf4+ {[%clk 0:02:48.6]} 34. gxf4+ {[%clk 0:02:56.5]} 34...
Kf6 {[%clk 0:02:46.6]} 35. Nd2 {[%clk 0:02:44.2]} 35... h5 {[%clk 0:02:42.1]}
36. Kd4 {[%clk 0:02:36.4]} 36... Ke6 {[%clk 0:02:38.1]} 37. f5+ {[%clk
0:02:33.2]} 37... Kd6 {[%clk 0:02:36.6]} 38. f6 {[%clk 0:02:30.5]} 38... h4
{[%clk 0:02:29]} 39. f7 {[%clk 0:02:26.5]} 39... Nc6+ {[%clk 0:02:27.7]} 40. Ke3
{[%clk 0:02:22.7]} 40... Ke7 {[%clk 0:02:26]} 41. Nf3 {[%clk 0:02:11.7]} 41...
h3 {[%clk 0:02:22.1]} 42. Ng5 {[%clk 0:02:09.8]} 42... Ne5 {[%clk 0:02:17.8]}
43. Nxh3 {[%clk 0:02:04.8]} 43... Kxf7 {[%clk 0:02:12.1]} 44. Kd4 {[%clk
0:02:03.6]} 44... Ke6 {[%clk 0:02:10]} 45. Nf4+ {[%clk 0:02:02.7]} 45... Kd6
{[%clk 0:02:08.5]} 46. Nxd5 {[%clk 0:02:01.4]} 46... Nc6+ {[%clk 0:02:06.4]} 47.
Ke4 {[%clk 0:01:59.2]} 47... Na5 {[%clk 0:02:00.8]} 48. Nb4 {[%clk 0:01:54.6]}
48... Ke6 {[%clk 0:01:55.8]} 49. Nxa6 {[%clk 0:01:50.8]} 49... Nc6 {[%clk
0:01:50.5]} 50. h4 {[%clk 0:01:47.6]} 50... Kf6 {[%clk 0:01:49.5]} 51. Kd5
{[%clk 0:01:45.8]} 51... Na5 {[%clk 0:01:47.1]} 52. c4 {[%clk 0:01:43]} 52...
Kg7 {[%clk 0:01:37]} 53. c5 {[%clk 0:01:41.9]} 53... Kh6 {[%clk 0:01:36]} 54. c6
{[%clk 0:01:41.3]} 54... Nxc6 {[%clk 0:01:33]} 55. Kxc6 {[%clk 0:01:40.1]} 55...
Kh5 {[%clk 0:01:32.2]} 56. Kb7 {[%clk 0:01:39.7]} 56... Kxh4 {[%clk 0:01:31.5]}
57. Kxa7 {[%clk 0:01:39.4]} 57... Kg4 {[%clk 0:01:30.9]} 58. b4 {[%clk
0:01:39.1]} 58... Kf4 {[%clk 0:01:30.2]} 59. b5 {[%clk 0:01:38.8]} 59... Ke5
{[%clk 0:01:29.6]} 60. b6 {[%clk 0:01:38.2]} 60... Kd4 {[%clk 0:01:28.8]} 61. b7
{[%clk 0:01:37.4]} 61... Ke3 {[%clk 0:01:28.1]} 62. b8=Q {[%clk 0:01:35.8]}
62... Kf2 {[%clk 0:01:27.2]} 63. Qe5 {[%clk 0:01:31.1]} 63... Kg1 {[%clk
0:01:23.8]} 64. Qf4 {[%clk 0:01:28.7]} 64... Kg2 {[%clk 0:01:20.7]} 65. Be4+
{[%clk 0:01:26.3]} 65... Kg1 {[%clk 0:01:19.7]} 66. Qg3+ {[%clk 0:01:22.8]}
66... Kf1 {[%clk 0:01:18.4]} 67. Qg2+ {[%clk 0:01:20.4]} 67... Ke1 {[%clk
0:01:17.1]} 68. Qg1+ {[%clk 0:01:17.5]} 68... Kd2 {[%clk 0:01:15.9]} 69. Kb6
{[%clk 0:01:14.4]} 69... Kc3 {[%clk 0:01:14.3]} 70. Qg3+ {[%clk 0:01:13.4]}
70... Kc4 {[%clk 0:01:13.3]} 71. Qd3# {[%clk 0:01:11.9]} 1-0

[Event "Live Chess"]
[Site "Chess.com"]
[Date "2024.06.02"]
[Round "-"]
[White "booktrunk"]
[Black "PavelChernomordik"]
[Result "0-1"]
[WhiteElo "1503"]
[BlackElo "2503"]
[TimeControl "300"]
[EndTime "6:55:03 PDT"]
[Termination "PavelChernomordik won by resignation"]

1. d4 {[%clk 0:04:53.6]} 1... g6 {[%clk 0:04:52.9]} 2. Nc3 {[%clk 0:04:49.7]}
2... Bg7 {[%clk 0:04:51.8]} 3. Bf4 {[%clk 0:04:48.2]} 3... d6 {[%clk 0:04:50.7]}
4. e3 {[%clk 0:04:43.2]} 4... Nd7 {[%clk 0:04:49.6]} 5. Nf3 {[%clk 0:04:42]}
5... e5 {[%clk 0:04:48.4]} 6. dxe5 {[%clk 0:04:39.6]} 6... dxe5 {[%clk
0:04:47.3]} 7. Bg3 {[%clk 0:04:36.6]} 7... Qe7 {[%clk 0:04:46.2]} 8. Qd2 {[%clk
0:04:32.1]} 8... c6 {[%clk 0:04:42.4]} 9. O-O-O {[%clk 0:04:30.7]} 9... Nh6
{[%clk 0:04:40.9]} 10. Be2 {[%clk 0:04:26.8]} 10... O-O {[%clk 0:04:38.9]} 11.
h4 {[%clk 0:04:22.4]} 11... Nf5 {[%clk 0:04:36.2]} 12. h5 {[%clk 0:04:16.4]}
12... Nxg3 {[%clk 0:04:34.6]} 13. fxg3 {[%clk 0:04:15.1]} 13... Nc5 {[%clk
0:04:28.3]} 14. hxg6 {[%clk 0:04:10.2]} 14... hxg6 {[%clk 0:04:27.1]} 15. e4
{[%clk 0:03:37.3]} 15... Ne6 {[%clk 0:04:23.5]} 16. Rh2 {[%clk 0:03:31.8]} 16...
Rd8 {[%clk 0:04:17.7]} 17. Rdh1 {[%clk 0:03:29.4]} 17... Rxd2 {[%clk 0:04:16.1]}
18. Nxd2 {[%clk 0:03:25.7]} 18... Nd4 {[%clk 0:04:10.3]} 19. Bc4 {[%clk
0:03:21.8]} 19... Be6 {[%clk 0:04:05.6]} 20. Bxe6 {[%clk 0:03:20]} 20... Qxe6
{[%clk 0:04:02.9]} 21. Nf3 {[%clk 0:03:19]} 21... Nxf3 {[%clk 0:03:55]} 22. gxf3
{[%clk 0:03:18.9]} 22... Rd8 {[%clk 0:03:53.4]} 23. Ne2 {[%clk 0:03:17.5]} 23...
Qxa2 {[%clk 0:03:51.6]} 0-1

[Event "Live Chess"]
[Site "Chess.com"]
[Date "2024.06.02"]
[Round "-"]
[White "seasidecastle27"]
[Black "Anareza_Firouzja"]
[Result "1-0"]
[WhiteElo "1952"]
[BlackElo "1881"]
[TimeControl "300"]
[EndTime "6:55:04 PDT"]
[Termination "seasidecastle27 won on time"]

1. d4 {[%clk 0:04:57.1]} 1... Nf6 {[%clk 0:04:57.6]} 2. Nf3 {[%clk 0:04:56.3]}
2... e6 {[%clk 0:04:56.5]} 3. Bg5 {[%clk 0:04:54.6]} 3... d5 {[%clk 0:04:54.4]}
4. Nbd2 {[%clk 0:04:53.2]} 4... c5 {[%clk 0:04:52.2]} 5. e3 {[%clk 0:04:51.6]}
5... Nc6 {[%clk 0:04:50.5]} 6. c3 {[%clk 0:04:49.7]} 6... cxd4 {[%clk
0:04:49.2]} 7. exd4 {[%clk 0:04:48.3]} 7... Be7 {[%clk 0:04:47.9]} 8. Bd3 {[%clk
0:04:47.1]} 8... Bd6 {[%clk 0:04:46.1]} 9. Qe2 {[%clk 0:04:45.4]} 9... h6 {[%clk
0:04:45.2]} 10. Bh4 {[%clk 0:04:43.7]} 10... Bd7 {[%clk 0:04:44.6]} 11. Ne5
{[%clk 0:04:41.5]} 11... Rb8 {[%clk 0:04:31.2]} 12. O-O {[%clk 0:04:35.5]} 12...
a6 {[%clk 0:04:23.8]} 13. f4 {[%clk 0:04:30.8]} 13... b5 {[%clk 0:04:13.4]} 14.
a3 {[%clk 0:04:28.1]} 14... Na5 {[%clk 0:04:09.3]} 15. f5 {[%clk 0:04:26.3]}
15... Nc4 {[%clk 0:04:06.6]} 16. fxe6 {[%clk 0:04:19.3]} 16... Bxe6 {[%clk
0:04:00.5]} 17. Ndxc4 {[%clk 0:04:05.3]} 17... bxc4 {[%clk 0:03:56.5]} 18. Bg6
{[%clk 0:03:58.7]} 18... fxg6 {[%clk 0:03:45.6]} 19. Nxg6 {[%clk 0:03:55.7]}
19... Kf7 {[%clk 0:03:24.9]} 20. Nxh8+ {[%clk 0:03:47.3]} 20... Qxh8 {[%clk
0:03:19.6]} 21. Rae1 {[%clk 0:03:40.9]} 21... Re8 {[%clk 0:03:07.4]} 22. Bxf6
{[%clk 0:03:20.3]} 22... gxf6 {[%clk 0:03:02.1]} 23. Qh5+ {[%clk 0:03:16.8]}
23... Ke7 {[%clk 0:02:49.6]} 24. Qxd5 {[%clk 0:03:07.1]} 24... Kd7 {[%clk
0:02:33]} 25. Qb7+ {[%clk 0:03:01.8]} 25... Bc7 {[%clk 0:02:32.5]} 26. Qxa6
{[%clk 0:02:54.4]} 26... Qg8 {[%clk 0:02:18.8]} 27. Qb5+ {[%clk 0:02:50.2]}
27... Kd8 {[%clk 0:02:14.1]} 28. d5 {[%clk 0:02:32.7]} 28... Bd7 {[%clk
0:02:10.2]} 29. Rxe8+ {[%clk 0:02:28.6]} 29... Qxe8 {[%clk 0:02:10.1]} 30. Qxc4
{[%clk 0:02:17.8]} 30... Qe3+ {[%clk 0:02:03.1]} 31. Kh1 {[%clk 0:02:16.2]}
31... Qe5 {[%clk 0:01:56.6]} 32. Qh4 {[%clk 0:02:08.8]} 32... Kc8 {[%clk
0:01:47.2]} 33. c4 {[%clk 0:02:00.5]} 33... Bg4 {[%clk 0:01:14.3]} 34. Qxh6
{[%clk 0:01:53.9]} 34... Qe2 {[%clk 0:01:04.6]} 35. Qf8+ {[%clk 0:01:42.8]}
35... Kb7 {[%clk 0:00:59.9]} 36. Qxf6 {[%clk 0:01:40.6]} 36... Bd7 {[%clk
0:00:43.7]} 37. Qf3 {[%clk 0:01:29]} 37... Qxb2 {[%clk 0:00:38.6]} 38. c5 {[%clk
0:01:20.9]} 38... Bb5 {[%clk 0:00:19.1]} 39. c6+ {[%clk 0:01:15.8]} 39... Ka6
{[%clk 0:00:16.5]} 40. h3 {[%clk 0:01:02.8]} 40... Bxf1 {[%clk 0:00:14.5]} 41.
Qxf1+ {[%clk 0:01:00.2]} 41... Ka7 {[%clk 0:00:11.5]} 42. Qg1+ {[%clk
0:00:57.3]} 42... Kb8 {[%clk 0:00:09.9]} 43. Qf1 {[%clk 0:00:54.3]} 43... Qxa3
{[%clk 0:00:08.8]} 44. Qd1 {[%clk 0:00:49.4]} 44... Qd6 {[%clk 0:00:06.7]} 45.
Kg1 {[%clk 0:00:47.7]} 45... Qh2+ {[%clk 0:00:04.9]} 46. Kf1 {[%clk 0:00:46.6]}
46... Bg3 {[%clk 0:00:03.6]} 47. Qb1+ {[%clk 0:00:42.3]} 47... Kc8 {[%clk
0:00:03]} 48. Qf5+ {[%clk 0:00:40.1]} 48... Kb8 {[%clk 0:00:01.8]} 49. Qf8+
{[%clk 0:00:37.1]} 49... Ka7 {[%clk 0:00:00.9]} 50. Qe7+ {[%clk 0:00:34.3]}
50... Kb6 {[%clk 0:00:00.5]} 51. Qb7+ {[%clk 0:00:33.1]} 1-0

[Event "Live Chess"]
[Site "Chess.com"]
[Date "2024.06.02"]
[Round "-"]
[White "gmnorfolk"]
[Black "Pandreq"]
[Result "1-0"]
[WhiteElo "2151"]
[BlackElo "1236"]
[TimeControl "300"]
[EndTime "6:55:09 PDT"]
[Termination "gmnorfolk won by resignation"]

1. d4 {[%clk 0:04:56.7]} 1... d5 {[%clk 0:04:58.7]} 2. Nf3 {[%clk 0:04:55.1]}
2... c6 {[%clk 0:04:49.4]} 3. Bf4 {[%clk 0:04:52.2]} 3... Nf6 {[%clk 0:04:48.6]}
4. Nbd2 {[%clk 0:04:38.8]} 4... Bf5 {[%clk 0:04:45.7]} 5. e3 {[%clk 0:04:15]}
5... e6 {[%clk 0:04:40.2]} 6. c4 {[%clk 0:04:11.9]} 6... c5 {[%clk 0:04:33.9]}
7. cxd5 {[%clk 0:04:10.5]} 7... Nxd5 {[%clk 0:04:32.4]} 8. Bg3 {[%clk
0:04:08.4]} 8... cxd4 {[%clk 0:04:28.1]} 9. Bb5+ {[%clk 0:04:06.5]} 9... Nc6
{[%clk 0:04:19.1]} 10. Bxc6+ {[%clk 0:04:04.8]} 10... bxc6 {[%clk 0:04:17.9]}
11. e4 {[%clk 0:04:04.7]} 11... Bg4 {[%clk 0:04:05.7]} 12. exd5 {[%clk 0:04:03]}
12... Qxd5 {[%clk 0:04:04.3]} 13. O-O {[%clk 0:03:58.7]} 13... Bb4 {[%clk
0:03:47.5]} 14. h3 {[%clk 0:03:52.1]} 14... Bh5 {[%clk 0:03:44.6]} 15. Qb3
{[%clk 0:03:46.3]} 15... Qxb3 {[%clk 0:03:33.5]} 16. Nxb3 {[%clk 0:03:43.2]}
16... Bxf3 {[%clk 0:03:29.1]} 17. gxf3 {[%clk 0:03:41.5]} 17... c5 {[%clk
0:03:28.2]} 18. a3 {[%clk 0:03:40.6]} 18... Bxa3 {[%clk 0:03:03.6]} 19. Rxa3
{[%clk 0:03:38.3]} 19... Rb8 {[%clk 0:03:01.7]} 20. Nxc5 {[%clk 0:03:36.9]}
20... Rxb2 {[%clk 0:02:56.1]} 21. Rxa7 {[%clk 0:03:35.6]} 21... O-O {[%clk
0:02:54.8]} 22. Rd7 {[%clk 0:03:33.5]} 22... Rb4 {[%clk 0:02:48.1]} 23. Rd1
{[%clk 0:03:30.9]} 23... Rc8 {[%clk 0:02:44]} 24. R7xd4 {[%clk 0:03:26.9]} 24...
Rxd4 {[%clk 0:02:41.4]} 25. Rxd4 {[%clk 0:03:26.3]} 1-0